fUSD/lending_fUSD_20260412
["ID","MTS","AMOUNT","RATE_DAILY","PERIOD"]
[420336123,1775992234594,-500.0,0.00014796,2]
[420336124,1775992234631,-21174.85987161,0.00014797,2]
[420336125,1775992234668,-18158.61043862,0.00014797,2]
[420336126,1775992234701,-2012.78354579,0.00014797,2]
[420336127,1775992234736,-2498.70757123,0.00014797,2]
[420336128,1775992234759,-503.45,0.00014797,2]
[420336129,1775992234925,-179326.97717275,0.00014797,2]
[420336130,1775992234949,-500.0,0.00014797,2]
[420336131,1775992234966,-500.0,0.00014797,2]
[420336132,1775992234978,-500.0,0.00014797,2]
[420336133,1775992235393,-500.0,0.00014797,2]
[420336134,1775992235403,-500.0,0.00014797,2]
[420336135,1775992235413,-225.2772,0.00014798,2]
[420336136,1775992235433,-2868.87,0.0001486,2]
[420336137,1775992235442,-300.0,0.00015,2]
[420336138,1775992235451,-578.20924308,0.00015199,2]
[420336139,1775992235464,-1328.27659266,0.00015199,2]
[420336140,1775992235476,-174.61919142,0.00015199,2]
[420336141,1775992235486,-5000.0,0.000152,2]
[420336142,1775992235495,-150.0,0.00015488,2]
[420336143,1775992235508,-239.584,0.00015488,2]
[420336144,1775992235521,-1047.0,0.00015488,2]
[420336145,1775992235533,-622.0,0.00015488,2]
[420336146,1775992235543,-1348.0,0.00015488,2]
[420336147,1775992235564,-1264.0,0.00015488,2]
[420336148,1775992235573,-926.0,0.00015488,2]
[420336149,1775992235583,-1218.0,0.00015488,2]
[420336150,1775992235604,-2472.0,0.00015488,2]
[420336151,1775992235614,-1559.24,0.00015535,2]
[420336152,1775992235625,-264.27769937,0.00015641,2]
[420336153,1775992235639,-1544.514254,0.0001568,2]
[420336154,1775992235668,-192.0,0.00015708,2]
[420336155,1775992235677,-192.0,0.00015727,2]
[420336156,1775992235691,-1377.42282659,0.00015747,2]
[420336157,1775992235720,-3574.03594771,0.000158,2]
[420336158,1775992235732,-3428.96405229,0.000158,2]
[420336159,1775992235746,-255.0,0.00015828,2]
[420336160,1775992235759,-5000.0,0.000159,2]
[420336161,1775992235782,-3478.77189742,0.000159,2]
[420336162,1775992235794,-1644.25488422,0.000159,2]
[420336163,1775992235805,-582.37454375,0.000159,2]
[420336164,1775992235825,-250.0,0.00015945,2]
[420336165,1775992235834,-250.0,0.00015945,2]
[420336166,1775992235846,-300.0,0.00015945,2]
[420336167,1775992235856,-500.0,0.00015973,2]
[420336168,1775992235877,-171.414,0.00015973,2]
[420336169,1775992235903,-923.974,0.00015973,2]
[420336170,1775992235912,-151.0,0.00015997,2]
[420336171,1775992235921,-500.0,0.00015999,2]
[420336172,1775992235936,-150.0,0.00015999,2]
[420336173,1775992235950,-500.0,0.00015999,2]
[420336174,1775992235960,-623.55595166,0.00015999,2]
[420336175,1775992235969,-208.0,0.00016,5]
[420336176,1775992235989,-151.0,0.00016,5]
[420336177,1775992235998,-25762.82084911,0.00016,2]
[420336178,1775992236010,-51006.54411465,0.00016,2]
[420336179,1775992236633,4479.0923463,0.00030137,120]
[420336183,1775992238664,-224.085709,0.0001568,2]
[420336184,1775992238682,-1929.89597943,0.000159,2]
[420336185,1775992238695,-3070.10402057,0.000159,2]
[420336186,1775992238706,-2024.34567244,0.00016,2]
[420336187,1775992238734,-1601.31607949,0.00016,2]
[420336188,1775992238747,-466.31206902,0.00016,2]
[420336189,1775992238801,-459.9448,0.00016,2]
[420336190,1775992238812,-1000.56970499,0.00016,2]
[420336197,1775992240940,-327.53230552,0.00015488,2]
[420336213,1775992243637,-1369.72086266,0.00015488,2]
[420336214,1775992243649,-3696.40177286,0.00015488,2]
[420336226,1775992246497,-448.37058953,0.00015488,2]
[420336227,1775992246575,-182.97446943,0.00015488,2]
[420336228,1775992246585,-373.47618166,0.0001568,2]
[420336229,1775992246602,-9.14934901,0.00016,2]
[420336230,1775992246620,-4868.7298457,0.00016,2]
[420336231,1775992246632,-1261.267356,0.00016,2]
[420336232,1775992246654,-11809.15041545,0.00016,2]
[420336233,1775992246672,-10895.63878137,0.00016,2]
[420336238,1775992355149,3035.0,0.00030137,120]
[420336239,1775992497654,621.1234365,0.00030136,120]
[420336240,1775992696913,161.0,0.000261,120]
[420336241,1775992705323,151.0,0.00026003,120]
[420336243,1775992990817,196.1,7.362e-05,2]
[420336244,1775992991041,196.1,7.749e-05,2]
[420336245,1775992991244,196.1,8.137e-05,2]
[420336246,1775992991759,196.1,8.524e-05,2]
[420336247,1775992996773,160.0,0.0002654,120]
[420336248,1775993357496,155.0,0.00025529,120]
[420336249,1775993361189,-278.0,8.911e-05,2]
[420336250,1775993361226,-196.1,8.911e-05,2]
[420336251,1775993361262,-196.1,9.299e-05,2]
[420336252,1775993361303,-196.1,9.686e-05,2]
[420336253,1775993361753,-196.1,0.00010074,2]
[420336254,1775993361802,-196.1,0.00010461,2]
[420336255,1775993361834,-196.1,0.00010849,2]
[420336256,1775993361866,-196.1,0.00011236,2]
[420336257,1775993361903,-196.1,0.00011624,2]
[420336258,1775993361939,-196.1,0.00012011,2]
[420336259,1775993361964,-196.1,0.00012399,2]
[420336260,1775993362015,-150.0,0.000124,2]
[420336261,1775993362043,-61.0,0.00012786,2]
[420336262,1775993364984,173.0,0.00025529,120]
[420336263,1775993431775,-135.1,0.00012786,2]
[420336264,1775993431785,-250.0,0.00013,2]
[420336265,1775993431797,-196.1,0.00013173,2]
[420336266,1775993431810,-196.1,0.00013561,2]
[420336267,1775993431819,-11.76159669,0.00013948,2]
[420336268,1775993431897,-184.33840331,0.00013948,2]
[420336269,1775993431906,-2500.0,0.00014065,2]
[420336270,1775993431919,-1083.63360886,0.00014065,2]
[420336271,1775993431958,-1416.36639114,0.00014065,2]
[420336272,1775993431970,-196.1,0.00014336,2]
[420336273,1775993431979,-150.0,0.000144,2]
[420336274,1775993431988,-150.0,0.000144,2]
[420336275,1775993432003,-150.0,0.000144,2]
[420336276,1775993432017,-166.66,0.00014401,2]
[420336277,1775993432026,-1200.0,0.00014495,2]
[420336278,1775993432035,-500.0,0.00014496,2]
[420336279,1775993432055,-195.28389101,0.00014496,2]
[420336280,1775993432066,-500.0,0.00014496,2]
[420336281,1775993432076,-500.0,0.00014496,2]
[420336282,1775993432099,-573.85665656,0.00014496,2]
[420336283,1775993432110,-500.0,0.00014496,2]
[420336284,1775993432122,-500.0,0.00014496,2]
[420336285,1775993432142,-500.0,0.00014496,2]
[420336286,1775993432155,-500.0,0.00014496,2]
[420336287,1775993432169,-229.80933738,0.00014496,2]
[420336288,1775993432190,-500.0,0.00014496,2]
[420336289,1775993432201,-458.74638839,0.00014496,2]
[420336290,1775993432235,-500.0,0.00014496,2]
[420336291,1775993432253,-150.0,0.00014496,2]
[420336292,1775993432290,-119314.79772119,0.00014497,2]
[420336293,1775993432318,-9642.83457881,0.00014497,2]
[420336294,1775993432344,-500.0,0.00014596,2]
[420336295,1775993432365,-500.0,0.00014596,2]
[420336296,1775993432407,-500.0,0.00014596,2]
[420336297,1775993432427,-500.0,0.00014596,2]
[420336298,1775993432455,-500.0,0.00014596,2]
[420336299,1775993432476,-500.0,0.00014596,2]
[420336300,1775993432507,-3376.30874346,0.00014605,2]
[420336301,1775993432558,-166.66,0.00014705,2]
[420336302,1775993432601,-196.1,0.00014723,2]
[420336303,1775993432623,-3702.31525555,0.0001499,2]
[420336304,1775993432639,-1738.58471137,0.0001499,2]
[420336305,1775993432655,-300.0,0.00015,2]
[420336306,1775993432668,-166.66,0.00015008,2]
[420336307,1775993432678,-166.66,0.00015311,2]
[420336308,1775993432698,-1218.0,0.00015488,2]
[420336309,1775993432707,-926.0,0.00015488,2]
[420336310,1775993432722,-1344.0,0.00015488,2]
[420336311,1775993432739,-6025.0,0.00015488,2]
[420336312,1775993432748,-171.3645,0.000155,2]
[420336313,1775993432760,-3789.5486553,0.00015507,2]
[420336314,1775993437956,-210.4513447,0.00015507,2]
[420336315,1775993438034,-166.66,0.00015614,2]
[420336316,1775993438188,-255.0,0.00015627,2]
[420336317,1775993438387,-532.76,0.00015684,2]
[420336318,1775993438564,-368.03,0.00015684,2]
[420336320,1775993438660,-2000.0,0.0001589,2]
[420336322,1775993438754,-4000.0,0.00015895,2]
[420336324,1775993438782,-155.54311716,0.000159,2]
[420336325,1775993438806,-5000.0,0.000159,2]
[420336326,1775993438844,-4610.72410344,0.000159,2]
[420336327,1775993438861,-404.42676648,0.000159,2]
[420336328,1775993438886,-166.66,0.00015917,2]
[420336329,1775993438898,-739.179,0.00015945,2]
[420336330,1775993438940,-250.0,0.00015945,2]
[420336331,1775993438952,-250.0,0.00015945,2]
[420336332,1775993438978,-250.0,0.00015945,2]
[420336333,1775993438987,-355.0,0.00015955,2]
[420336334,1775993439027,-501.27329872,0.00015973,2]
[420336335,1775993439048,-500.0,0.00015999,2]
[420336336,1775993439081,-500.0,0.00015999,2]
[420336337,1775993439091,-500.0,0.00015999,2]
[420336338,1775993439115,-500.0,0.00015999,2]
[420336339,1775993439143,-500.0,0.00015999,2]
[420336340,1775993439156,-262.76841251,0.00015999,2]
[420336341,1775993439171,-500.0,0.00015999,2]
[420336342,1775993439187,-500.0,0.00015999,2]
[420336343,1775993439217,-500.0,0.00015999,2]
[420336344,1775993439227,-500.0,0.00015999,2]
[420336345,1775993439240,-557.8703044,0.00015999,2]
[420336346,1775993439262,-198.44213685,0.00015999,2]
[420336347,1775993439272,-195.45644241,0.00015999,2]
[420336348,1775993439287,-587.2623067,0.00015999,2]
[420336349,1775993439315,-197.06382949,0.00015999,2]
[420336350,1775993439326,-153.0,0.00016,5]
[420336351,1775993439343,-158.0,0.00016,5]
[420336352,1775993439373,-150.0,0.00016,2]
[420336353,1775993439395,-40976.42893723,0.00016,2]
[420336354,1775993439443,-1335.68020852,0.00016,2]
[420336355,1775993439472,-465035.47182749,0.00016,2]
[420336356,1775993439486,-1122385.7744189,0.00016,2]
[420336357,1775993439499,-2000.0,0.00016,2]
[420336358,1775993439519,-364143.02733165,0.00016,2]
[420336359,1775993439547,-150.0,0.00016,2]
[420336360,1775993439587,-151.0,0.00016,2]
[420336361,1775993439651,-151.0,0.00016,2]
[420336362,1775993439663,-151.0,0.00016,2]
[420336363,1775993439689,-151.0,0.00016,2]
[420336364,1775993439713,-151.0,0.00016,2]
[420336365,1775993439723,-151.0,0.00016,2]
[420336366,1775993439741,-151.0,0.00016,2]
[420336367,1775993439750,-151.0,0.00016,2]
[420336368,1775993439759,-151.0,0.00016,2]
[420336369,1775993439769,-151.0,0.00016,2]
[420336370,1775993439791,-151.0,0.00016,2]
[420336371,1775993439800,-151.0,0.00016,2]
[420336372,1775993439810,-151.0,0.00016,2]
[420336373,1775993439820,-151.0,0.00016,2]
[420336374,1775993439839,-151.0,0.00016,2]
[420336375,1775993439858,-151.0,0.00016,2]
[420336376,1775993439867,-151.0,0.00016,2]
[420336377,1775993439876,-151.0,0.00016,2]
[420336378,1775993439886,-151.0,0.00016,2]
[420336379,1775993439909,-151.0,0.00016,2]
[420336380,1775993439918,-151.0,0.00016,2]
[420336381,1775993439930,-151.0,0.00016,2]
[420336382,1775993439963,-151.0,0.00016,2]
[420336383,1775993439973,-151.0,0.00016,2]
[420336384,1775993439998,-151.0,0.00016,2]
[420336385,1775993440010,-151.0,0.00016,2]
[420336386,1775993440020,-151.0,0.00016,2]
[420336387,1775993440065,-151.0,0.00016,2]
[420336388,1775993440074,-200.0,0.00016,2]
[420336389,1775993440108,-626.57740048,0.00016,2]
[420336390,1775993440119,-192.0,0.00016,2]
[420336391,1775993440161,-192.05593479,0.00016,2]
[420336392,1775993440182,-173.61475,0.00016,2]
[420336393,1775993440209,-176.285447,0.00016,2]
[420336395,1775993440282,-3026.869251,0.0001601,2]
[420336396,1775993440297,-5075.20555791,0.0001608,2]
[420336397,1775993440327,-192.0,0.00016083,2]
[420336398,1775993440344,-1055.0,0.00016097,2]
[420336399,1775993440390,-626.57740048,0.000161,2]
[420336400,1775993440412,-1571.0,0.00016168,2]
[420336401,1775993440436,-173.61475,0.000162,2]
[420336402,1775993440449,-503.78832601,0.00016243,3]
[420336403,1775993440489,-1559.24,0.00016275,2]
[420336404,1775993440509,-4000.0,0.00016282,2]
[420336405,1775993440523,-192.0,0.00016289,2]
[420336406,1775993440549,-150.0,0.00016321,2]
[420336407,1775993440562,-192.0,0.00016328,2]
[420336408,1775993440579,-900.0,0.00016332,2]
[420336409,1775993440606,-192.0,0.00016334,2]
[420336410,1775993440616,-200.0,0.0001634,2]
[420336411,1775993440637,-1600.0,0.00016389,2]
[420336412,1775993440650,-2000.0,0.000164,2]
[420336413,1775993440661,-173.61476,0.000164,2]
[420336414,1775993440689,-1719.91,0.00016438,2]
[420336415,1775993440699,-2866.51,0.00016438,2]
[420336416,1775993440709,-151.0,0.00016438,2]
[420336417,1775993440725,-223.152328,0.00016438,2]
[420336418,1775993440740,-151.0,0.00016438,2]
[420336419,1775993440751,-151.0,0.00016438,2]
[420336420,1775993440762,-151.0,0.00016438,2]
[420336421,1775993440782,-151.0,0.00016438,2]
[420336422,1775993440793,-151.0,0.00016438,2]
[420336423,1775993440821,-151.0,0.00016438,2]
[420336424,1775993440830,-151.0,0.00016438,2]
[420336425,1775993440845,-151.0,0.00016438,2]
[420336426,1775993440867,-260.452288,0.00016438,2]
[420336427,1775993440879,-2500.0,0.00016438,2]
[420336428,1775993440903,-2500.0,0.00016438,2]
[420336429,1775993440924,-2500.0,0.00016438,2]
[420336430,1775993440934,-2500.0,0.00016438,2]
[420336431,1775993440946,-2500.0,0.00016438,2]
[420336432,1775993440962,-2500.0,0.00016438,2]
[420336433,1775993440972,-2500.0,0.00016438,2]
[420336434,1775993440981,-1898.57304,0.00016438,2]
[420336435,1775993441002,-2500.0,0.00016438,2]
[420336436,1775993441012,-2500.0,0.00016438,2]
[420336437,1775993441021,-2500.0,0.00016438,2]
[420336438,1775993441055,-240.0,0.00016438,2]
[420336439,1775993441064,-229.16,0.00016438,2]
[420336440,1775993441073,-151.0,0.00016438,2]
[420336441,1775993441097,-151.0,0.00016438,2]
[420336442,1775993441109,-151.0,0.00016438,2]
[420336443,1775993441119,-151.0,0.00016438,2]
[420336444,1775993441152,-151.0,0.00016438,2]
[420336445,1775993441162,-151.0,0.00016438,2]
[420336446,1775993441180,-151.0,0.00016438,2]
[420336447,1775993441211,-151.0,0.00016438,2]
[420336448,1775993441221,-151.0,0.00016438,2]
[420336449,1775993441231,-151.0,0.00016438,2]
[420336450,1775993441249,-151.0,0.00016438,2]
[420336451,1775993441260,-151.0,0.00016438,2]
[420336452,1775993441270,-151.0,0.00016438,2]
[420336453,1775993441304,-151.0,0.00016438,2]
[420336454,1775993441314,-151.0,0.00016438,2]
[420336455,1775993441351,-151.0,0.00016438,2]
[420336456,1775993441382,-151.0,0.00016438,2]
[420336457,1775993441391,-151.0,0.00016438,2]
[420336458,1775993441404,-151.0,0.00016438,2]
[420336459,1775993441451,-151.0,0.00016438,2]
[420336460,1775993441467,-151.0,0.00016438,2]
[420336461,1775993441478,-151.0,0.00016438,2]
[420336462,1775993441489,-183.954148,0.00016438,2]
[420336463,1775993441500,-151.0,0.00016438,2]
[420336464,1775993441528,-151.0,0.00016438,2]
[420336465,1775993441538,-151.0,0.00016438,2]
[420336466,1775993441551,-151.0,0.00016438,2]
[420336467,1775993441576,-151.0,0.00016438,2]
[420336468,1775993441586,-151.0,0.00016438,2]
[420336469,1775993441602,-151.0,0.00016438,2]
[420336470,1775993441617,-151.0,0.00016438,2]
[420336471,1775993441628,-151.0,0.00016438,2]
[420336472,1775993441642,-151.0,0.00016438,2]
[420336473,1775993441668,-174.072358,0.00016438,2]
[420336474,1775993441679,-300.0,0.00016438,3]
[420336475,1775993441689,-300.0,0.00016438,3]
[420336476,1775993441714,-300.0,0.00016438,3]
[420336477,1775993441723,-300.0,0.00016438,3]
[420336478,1775993441733,-300.0,0.00016438,3]
[420336479,1775993441743,-150.0,0.00016438,2]
[420336480,1775993441762,-534.203995,0.00016438,2]
[420336481,1775993441772,-534.203995,0.00016438,2]
[420336482,1775993441782,-534.203995,0.00016438,2]
[420336483,1775993441801,-534.203995,0.00016438,2]
[420336484,1775993441811,-534.203995,0.00016438,2]
[420336485,1775993441821,-534.203995,0.00016438,2]
[420336486,1775993441831,-534.203995,0.00016438,2]
[420336487,1775993441858,-534.203995,0.00016438,2]
[420336488,1775993441867,-534.203995,0.00016438,2]
[420336489,1775993441877,-534.203995,0.00016438,2]
[420336490,1775993441896,-534.203995,0.00016438,2]
[420336491,1775993441906,-534.203995,0.00016438,2]
[420336492,1775993441916,-192.0,0.00016441,2]
[420336493,1775993441926,-192.0,0.00016445,2]
[420336494,1775993441937,-192.0,0.00016467,2]
[420336495,1775993441946,-192.0,0.0001648,2]
[420336496,1775993441955,-200.0,0.00016524,2]
[420336497,1775993441965,-307.890991,0.00016587,2]
[420336498,1775993441975,-165.538733,0.00016587,2]
[420336499,1775993441984,-192.0,0.00016599,2]
[420336500,1775993441996,-363.64275133,0.000166,2]
[420336501,1775993442006,-185.32236,0.00016663,7]
[420336502,1775993442015,-192.0,0.0001667,2]
[420336503,1775993442025,-4000.0,0.0001667,2]
[420336504,1775993442035,-2000.0,0.00016679,2]
[420336505,1775993442044,-195.772,0.000167,2]
[420336506,1775993442054,-355.0,0.00016708,2]
[420336507,1775993442064,-250.0,0.00016712,2]
[420336508,1775993442073,-192.0,0.00016783,2]
[420336509,1775993442086,-372.960671,0.00016805,7]
[420336510,1775993442097,-162.6875,0.00016861,2]
[420336511,1775993442107,-192.0,0.00016874,2]
[420336512,1775993442116,-192.0,0.00016889,2]
[420336513,1775993442126,-1573.06158954,0.00016925,2]
[420336514,1775993442136,-192.0,0.00016933,2]
[420336515,1775993442147,-355.0,0.00016937,2]
[420336516,1775993442156,-350.0,0.00016986,2]
[420336517,1775993442168,-192.0,0.0001699,2]
[420336518,1775993442180,-350.0,0.00017,2]
[420336519,1775993442195,-192.0,0.00017003,2]
[420336520,1775993442205,-1559.24,0.00017014,2]
[420336521,1775993442220,-192.0,0.00017043,2]
[420336522,1775993442232,-841.157385,0.00017043,2]
[420336523,1775993442244,-4000.0,0.00017058,2]
[420336524,1775993442254,-163.368222,0.00017067,2]
[420336525,1775993442264,-158.0,0.00017148,2]
[420336526,1775993442276,-525.0,0.00017148,2]
[420336527,1775993442292,-237.0,0.00017148,2]
[420336528,1775993442303,-476.0,0.00017148,2]
[420336529,1775993442313,-263.0,0.00017148,2]
[420336530,1775993442332,-446.0,0.00017148,2]
[420336531,1775993442358,-637.0,0.00017148,2]
[420336532,1775993442368,-591.0,0.00017148,2]
[420336533,1775993442378,-553.0,0.00017148,2]
[420336534,1775993442407,-450.0,0.0001726,2]
[420336535,1775993442416,-3376.3087434,0.00017416,2]
[420336536,1775993442433,-271.0,0.00017488,2]
[420336537,1775993442446,-550.0,0.00017534,2]
[420336538,1775993442455,-160.0,0.0001767,2]
[420336540,1775993442481,-788.9636093,0.000177,2]
[420336541,1775993442494,-403.0,0.000177,5]
[420336543,1775993442511,-900.0,0.00017702,2]
[420336545,1775993442524,-1559.24,0.00017754,2]
[420336547,1775993442538,-223.6558,0.000178,2]
[420336549,1775993442549,-650.0,0.00017808,2]
[420336551,1775993442578,-1010.25832507,0.0001786,2]
[420336553,1775993442588,-1232.65098872,0.0001789,2]
[420336554,1775993442610,-1080.14166126,0.0001789,2]
[420336556,1775993442620,-1201.35636327,0.00018,2]
[420336559,1775993442630,-650.2370343,0.00018,2]
[420336560,1775993442663,-200.0,0.00018,2]
[420336561,1775993442673,-1126.49,0.00018082,2]
[420336562,1775993442684,-1036.8,0.00018082,2]
[420336563,1775993442721,-750.0,0.00018082,2]
[420336564,1775993442731,-1793.06447166,0.000181,2]
[420336565,1775993442760,-787.79,0.00018141,2]
[420336566,1775993442783,-151.0,0.00018147,2]
[420336567,1775993442793,-151.0,0.00018147,2]
[420336568,1775993442814,-151.0,0.00018147,2]
[420336569,1775993442825,-165.08186226,0.00018148,2]
[420336570,1775993442847,-525.0,0.00018148,2]
[420336571,1775993442856,-237.0,0.00018148,2]
[420336572,1775993442866,-476.0,0.00018148,2]
[420336573,1775993442881,-263.0,0.00018148,2]
[420336574,1775993442891,-446.0,0.00018148,2]
[420336575,1775993442901,-637.0,0.00018148,2]
[420336576,1775993442911,-591.0,0.00018148,2]
[420336577,1775993442925,-553.0,0.00018148,2]
[420336578,1775993442935,-1600.0,0.0001821,2]
[420336579,1775993442944,-473.7,0.00018273,2]
[420336580,1775993442961,-156.59,0.00018277,2]
[420336581,1775993442971,-850.0,0.00018356,2]
[420336582,1775993442980,-175.26195521,0.00018366,5]
[420336583,1775993442991,-2049.19,0.00018457,2]
[420336584,1775993443004,-150.0,0.00018488,2]
[420336585,1775993443014,-1218.0,0.00018488,2]
[420336586,1775993443024,-926.0,0.00018488,2]
[420336587,1775993443033,-4585.767,0.00018488,2]
[420336588,1775993443049,-151.0,0.00018488,2]
[420336589,1775993443059,-151.0,0.00018488,2]
[420336590,1775993443069,-151.0,0.00018488,2]
[420336591,1775993443085,-151.0,0.00018488,2]
[420336592,1775993443096,-151.0,0.00018488,2]
[420336593,1775993443105,-151.0,0.00018488,2]
[420336594,1775993443115,-534.203995,0.00018488,2]
[420336595,1775993443128,-534.203995,0.00018488,2]
[420336596,1775993443139,-534.203995,0.00018488,2]
[420336597,1775993443148,-534.203995,0.00018488,2]
[420336598,1775993443157,-151.0,0.00018488,2]
[420336599,1775993443180,-151.0,0.00018488,2]
[420336600,1775993443191,-151.0,0.00018488,2]
[420336601,1775993443201,-2000.0,0.00018532,2]
[420336602,1775993443216,-4610.72410341,0.00018618,2]
[420336603,1775993443226,-950.0,0.0001863,2]
[420336604,1775993443236,-1089.36,0.00018904,2]
[420336605,1775993443245,-1063.67992613,0.00018904,2]
[420336606,1775993443269,-400.0,0.00019,2]
[420336607,1775993443278,-255.5112,0.00019,2]
[420336608,1775993443288,-1616.427707,0.00019075,2]
[420336609,1775993443302,-869.078351,0.00019075,2]
[420336610,1775993443323,-496.459402,0.00019075,7]
[420336611,1775993443334,-525.0,0.00019148,2]
[420336612,1775993443344,-237.0,0.00019148,2]
[420336613,1775993443355,-476.0,0.00019148,2]
[420336614,1775993443373,-263.0,0.00019148,2]
[420336615,1775993443384,-446.0,0.00019148,2]
[420336616,1775993443396,-637.0,0.00019148,2]
[420336617,1775993443411,-591.0,0.00019148,2]
[420336618,1775993443430,-553.0,0.00019148,2]
[420336619,1775993443441,-648.62826,0.00019162,7]
[420336620,1775993443465,-164.0,0.00019178,30]
[420336621,1775993443491,-3000.0,0.00019178,2]
[420336622,1775993443504,-151.0,0.00019178,2]
[420336623,1775993443520,-151.0,0.00019178,2]
[420336624,1775993443533,-151.0,0.00019178,2]
[420336625,1775993443551,-176.494249,0.00019178,3]
[420336626,1775993443562,-189.729153,0.00019178,2]
[420336627,1775993443580,-189.729153,0.00019178,2]
[420336628,1775993443625,-189.729153,0.00019178,2]
[420336629,1775993443635,-189.729153,0.00019178,2]
[420336630,1775993443650,-189.729153,0.00019178,2]
[420336631,1775993443674,-189.729153,0.00019178,2]
[420336632,1775993443684,-189.729153,0.00019178,2]
[420336633,1775993443697,-189.729153,0.00019178,2]
[420336634,1775993443715,-189.729153,0.00019178,2]
[420336635,1775993443738,-189.729153,0.00019178,2]
[420336636,1775993443747,-189.729153,0.00019178,2]
[420336637,1775993443757,-189.729153,0.00019178,2]
[420336638,1775993443768,-189.729153,0.00019178,2]
[420336639,1775993443787,-189.729153,0.00019178,2]
[420336640,1775993443796,-189.729153,0.00019178,2]
[420336641,1775993443807,-189.729153,0.00019178,2]
[420336642,1775993443829,-308.292369,0.00019178,2]
[420336643,1775993443839,-308.292369,0.00019178,2]
[420336644,1775993443867,-308.292369,0.00019178,2]
[420336645,1775993443876,-308.292369,0.00019178,2]
[420336646,1775993443886,-308.292369,0.00019178,2]
[420336647,1775993443917,-308.292369,0.00019178,2]
[420336648,1775993443927,-308.292369,0.00019178,2]
[420336649,1775993443957,-308.292369,0.00019178,2]
[420336650,1775993443969,-308.292369,0.00019178,2]
[420336651,1775993443991,-308.292369,0.00019178,2]
[420336652,1775993444007,-308.292369,0.00019178,2]
[420336653,1775993444017,-308.292369,0.00019178,2]
[420336654,1775993444060,-308.292369,0.00019178,2]
[420336655,1775993444080,-308.292369,0.00019178,2]
[420336656,1775993444100,-308.292369,0.00019178,2]
[420336657,1775993444113,-308.292369,0.00019178,2]
[420336658,1775993444133,-169.932881,0.00019178,2]
[420336659,1775993444149,-169.932881,0.00019178,2]
[420336660,1775993444159,-169.932881,0.00019178,2]
[420336661,1775993444170,-169.932881,0.00019178,2]
[420336662,1775993444188,-169.932881,0.00019178,2]
[420336663,1775993444200,-169.932881,0.00019178,2]
[420336664,1775993444211,-169.932881,0.00019178,2]
[420336665,1775993444223,-169.932881,0.00019178,2]
[420336666,1775993444234,-169.932881,0.00019178,2]
[420336667,1775993444245,-169.932881,0.00019178,2]
[420336668,1775993444258,-169.932881,0.00019178,2]
[420336669,1775993444270,-169.932881,0.00019178,2]
[420336670,1775993444281,-169.932881,0.00019178,2]
[420336671,1775993444292,-169.932881,0.00019178,2]
[420336672,1775993444305,-169.932881,0.00019178,2]
[420336673,1775993444322,-169.932881,0.00019178,2]
[420336674,1775993444335,-776.61337,0.00019178,2]
[420336675,1775993444345,-776.61337,0.00019178,2]
[420336676,1775993444358,-776.61337,0.00019178,2]